fUST/lending_fUST_20250814
["ID","MTS","AMOUNT","RATE_DAILY","PERIOD"]
[379153507,1755167447871,-672.814985,0.00017745,2]
[379153508,1755167447880,-672.814985,0.00017745,2]
[379153509,1755167447890,-672.814985,0.00017745,2]
[379153510,1755167447900,-672.814985,0.00017745,2]
[379153511,1755167447910,-672.814985,0.00017745,2]
[379153512,1755167447920,-672.814985,0.00017745,2]
[379153513,1755167447930,-672.814985,0.00017745,2]
[379153514,1755167447939,-672.814985,0.00017745,2]
[379153515,1755167447949,-672.814985,0.00017745,2]
[379153516,1755167447958,-672.814981,0.00017745,2]
[379153517,1755167447969,-460.0,0.00017745,2]
[379153518,1755167447979,-1000.0,0.00017745,2]
[379153519,1755167447989,-1000.0,0.00017745,2]
[379153520,1755167447999,-1000.0,0.00017745,2]
[379153521,1755167448008,-1000.0,0.00017745,2]
[379153522,1755167448018,-1000.0,0.00017745,2]
[379153523,1755167448027,-1000.0,0.00017745,2]
[379153524,1755167448036,-1000.0,0.00017745,2]
[379153525,1755167448046,-1000.0,0.00017745,2]
[379153526,1755167448055,-1000.0,0.00017745,2]
[379153527,1755167448065,-1000.0,0.00017745,2]
[379153528,1755167448075,-1000.0,0.00017745,2]
[379153529,1755167448084,-745.881496,0.00017745,2]
[379153530,1755167448094,-151.0,0.00017745,2]
[379153531,1755167448103,-151.0,0.00017745,2]
[379153532,1755167448117,-151.0,0.00017745,2]
[379153533,1755167448127,-460.43149146,0.00017745,2]
[379153534,1755167448136,-151.0,0.00017745,2]
[379153535,1755167448146,-151.0,0.00017745,2]
[379153536,1755167448156,-296.385288,0.00017745,2]
[379153537,1755167448166,-151.0,0.00017745,2]
[379153538,1755167448176,-151.0,0.00017745,2]
[379153539,1755167448186,-151.0,0.00017745,2]
[379153540,1755167448196,-460.0,0.00017745,2]
[379153541,1755167448207,-151.0,0.00017745,2]
[379153542,1755167448216,-151.0,0.00017745,2]
[379153543,1755167448226,-151.0,0.00017745,2]
[379153544,1755167448236,-460.55384015,0.00017745,2]
[379153545,1755167448247,-182.4432,0.00017745,2]
[379153546,1755167448257,-460.73169431,0.00017745,2]
[379153547,1755167448267,-460.0,0.00017745,2]
[379153548,1755167448276,-460.0,0.00017745,2]
[379153549,1755167448286,-460.86564365,0.00017745,2]
[379153550,1755167448296,-461.4603041,0.00017745,2]
[379153551,1755167448306,-151.0,0.00017745,2]
[379153552,1755167448316,-151.0,0.00017745,2]
[379153553,1755167448326,-151.0,0.00017745,2]
[379153554,1755167448336,-1227.43,0.00017745,2]
[379153555,1755167448346,-460.0,0.00017745,2]
[379153556,1755167448356,-181.44314166,0.00017745,2]
[379153557,1755167448367,-460.0,0.00017745,2]
[379153558,1755167448377,-460.0,0.00017745,2]
[379153559,1755167448387,-460.0,0.00017745,2]
[379153560,1755167448396,-470.43365258,0.00017745,2]
[379153561,1755167448407,-460.0,0.00017745,2]
[379153562,1755167448416,-460.0,0.00017745,2]
[379153563,1755167448426,-151.0,0.00017745,2]
[379153564,1755167448444,-151.0,0.00017745,2]
[379153565,1755167448453,-151.0,0.00017745,2]
[379153566,1755167448463,-529.52,0.00017745,2]
[379153567,1755167448474,-460.0,0.00017745,2]
[379153568,1755167448483,-460.0,0.00017745,2]
[379153569,1755167448493,-151.0,0.00017745,2]
[379153570,1755167448503,-151.0,0.00017745,2]
[379153571,1755167448513,-151.0,0.00017745,2]
[379153572,1755167448535,-151.0,0.00017745,2]
[379153573,1755167448546,-151.0,0.00017745,2]
[379153574,1755167448556,-274.470461,0.00017745,2]
[379153575,1755167448565,-460.0,0.00017745,2]
[379153576,1755167448575,-460.0,0.00017745,2]
[379153577,1755167448585,-461.21511065,0.00017745,2]
[379153578,1755167448595,-151.0,0.00017745,2]
[379153579,1755167448606,-151.0,0.00017745,2]
[379153580,1755167448616,-151.0,0.00017745,2]
[379153581,1755167448626,-460.0,0.00017745,2]
[379153582,1755167448649,-390.05604,0.00017745,2]
[379153583,1755167448659,-390.05604,0.00017745,2]
[379153584,1755167448669,-460.0,0.00017745,2]
[379153585,1755167448682,-390.05604,0.00017745,2]
[379153586,1755167448691,-390.05604,0.00017745,2]
[379153587,1755167448702,-460.0,0.00017745,2]
[379153588,1755167448713,-151.0,0.00017745,2]
[379153589,1755167448727,-151.0,0.00017745,2]
[379153590,1755167448737,-813.444331,0.00017745,2]
[379153591,1755167448747,-813.444331,0.00017745,2]
[379153592,1755167448758,-813.444331,0.00017745,2]
[379153593,1755167448771,-813.444331,0.00017745,2]
[379153594,1755167448781,-813.444331,0.00017745,2]
[379153595,1755167448791,-813.444331,0.00017745,2]
[379153596,1755167448801,-248.579918,0.00017745,2]
[379153597,1755167448811,-1068.840739,0.00017745,2]
[379153598,1755167448821,-1068.840733,0.00017745,2]
[379153599,1755167448830,-151.0,0.00017746,2]
[379153600,1755167448840,-151.0,0.00017746,2]
[379153601,1755167448850,-151.0,0.00017746,2]
[379153602,1755167448860,-151.0,0.00017746,2]
[379153603,1755167448871,-151.0,0.00017746,2]
[379153604,1755167448880,-151.0,0.00017746,2]
[379153605,1755167448890,-151.0,0.00017746,2]
[379153606,1755167448900,-151.0,0.00017746,2]
[379153607,1755167448910,-151.0,0.00017746,2]
[379153608,1755167448920,-151.0,0.00017746,2]
[379153609,1755167448930,-151.0,0.00017746,2]
[379153610,1755167448939,-151.0,0.00017746,2]
[379153611,1755167448950,-271.900302,0.00017746,2]
[379153612,1755167448961,-271.900302,0.00017746,2]
[379153613,1755167448971,-271.900302,0.00017746,2]
[379153614,1755167448981,-271.900302,0.00017746,2]
[379153615,1755167448992,-271.900302,0.00017746,2]
[379153616,1755167449002,-271.900302,0.00017746,2]
[379153617,1755167449012,-271.900302,0.00017746,2]
[379153618,1755167449021,-271.900302,0.00017746,2]
[379153619,1755167449032,-271.900302,0.00017746,2]
[379153620,1755167449043,-271.900294,0.00017746,2]
[379153621,1755167449053,-151.0,0.00017746,2]
[379153622,1755167449063,-151.0,0.00017746,2]
[379153623,1755167449072,-151.0,0.00017746,2]
[379153624,1755167449083,-151.0,0.00017746,2]
[379153625,1755167449093,-151.0,0.00017746,2]
[379153626,1755167449103,-151.0,0.00017746,2]
[379153627,1755167449113,-390.05604,0.00017746,2]
[379153628,1755167449122,-390.05604,0.00017746,2]
[379153629,1755167449133,-151.0,0.00017746,2]
[379153630,1755167449144,-813.444331,0.00017746,2]
[379153631,1755167449154,-813.444331,0.00017746,2]
[379153632,1755167449165,-151.0,0.00017755,2]
[379153633,1755167449176,-151.0,0.00017755,2]
[379153634,1755167449186,-151.0,0.00017755,2]
[379153635,1755167449196,-151.0,0.00017755,2]
[379153636,1755167449207,-151.0,0.00017755,2]
[379153637,1755167449216,-151.0,0.00017755,2]
[379153638,1755167449228,-229.9,0.00017755,2]
[379153639,1755167449238,-151.0,0.00017755,2]
[379153640,1755167449248,-168.0,0.00017756,2]
[379153641,1755167449258,-151.0,0.00017756,2]
[379153642,1755167449268,-151.0,0.00017756,2]
[379153643,1755167449278,-186.800386,0.00017756,2]
[379153644,1755167449289,-162.111806,0.00017756,2]
[379153645,1755167449299,-151.0,0.00017756,2]
[379153646,1755167449308,-151.0,0.00017756,2]
[379153647,1755167449318,-151.0,0.00017756,2]
[379153648,1755167449330,-151.0,0.00017756,2]
[379153649,1755167449340,-151.0,0.00017756,2]
[379153650,1755167449349,-151.0,0.00017756,2]
[379153651,1755167449359,-151.0,0.00017756,2]
[379153652,1755167449369,-169.572898,0.00017756,2]
[379153653,1755167449378,-151.0,0.00017756,2]
[379153654,1755167449388,-151.0,0.00017756,2]
[379153655,1755167449399,-218.777479,0.00017757,2]
[379153656,1755167449409,-500.0,0.00017773,2]
[379153657,1755167449419,-500.0,0.00017773,2]
[379153658,1755167449428,-500.93077017,0.00017773,2]
[379153659,1755167449438,-500.0,0.00017773,2]
[379153660,1755167449459,-500.6190447,0.00017773,2]
[379153661,1755167449482,-500.0,0.00017773,2]
[379153662,1755167449502,-160.23614439,0.00017773,2]
[379153663,1755167449513,-516.78005594,0.00017773,2]
[379153664,1755167449522,-503.50895547,0.00017773,2]
[379153665,1755167449532,-500.22988453,0.00017773,2]
[379153666,1755167449543,-500.0,0.00017773,2]
[379153667,1755167449552,-502.57281991,0.00017773,2]
[379153668,1755167449562,-500.0,0.00017773,2]
[379153669,1755167449571,-500.0,0.00017773,2]
[379153670,1755167449581,-500.0,0.00017773,2]
[379153671,1755167449591,-500.0,0.00017773,2]
[379153672,1755167449600,-223.46328,0.00017773,2]
[379153673,1755167449610,-203.0,0.00017783,2]
[379153674,1755167449621,-246.364195,0.00017793,2]
[379153675,1755167449782,-271.58581098,0.00017796,2]
[379153676,1755167449793,-1382.3,0.00017796,2]
[379153677,1755167449804,-1461.56,0.00017796,2]
[379153678,1755167449814,-2776.97,0.00017796,2]
[379153679,1755167449824,-460.0,0.00017796,2]
[379153680,1755167449833,-4163.15,0.00017796,2]
[379153681,1755167449843,-460.0,0.00017796,2]
[379153682,1755167449852,-1114.66,0.00017796,2]
[379153683,1755167449863,-468.38,0.00017796,2]
[379153684,1755167449872,-4317.73,0.00017796,2]
[379153685,1755167449882,-467.4,0.00017796,2]
[379153686,1755167449891,-4365.14541443,0.00017802,2]
[379153687,1755167449900,-151.0,0.00017802,2]
[379153688,1755167449909,-151.0,0.00017802,2]
[379153689,1755167449919,-151.0,0.00017802,2]
[379153690,1755167449928,-156.52893,0.00017802,2]
[379153691,1755167449938,-460.0,0.00017802,2]
[379153692,1755167449947,-460.0,0.00017802,2]
[379153693,1755167449956,-684.56,0.00017802,2]
[379153694,1755167449966,-460.0,0.00017802,2]
[379153695,1755167449978,-151.0,0.00017802,2]
[379153696,1755167449987,-460.0,0.00017802,2]
[379153697,1755167449996,-460.0,0.00017802,2]
[379153698,1755167450006,-460.0,0.00017802,2]
[379153699,1755167450015,-1901.97,0.00017802,2]
[379153700,1755167450024,-460.0,0.00017802,2]
[379153701,1755167450035,-463.60489507,0.00017802,2]
[379153702,1755167450044,-460.0,0.00017802,2]
[379153703,1755167450053,-460.0,0.00017802,2]
[379153704,1755167450062,-460.0,0.00017802,2]
[379153705,1755167450071,-731.69,0.00017802,2]
[379153706,1755167450081,-460.0,0.00017802,2]
[379153707,1755167450090,-200.0,0.00017802,2]
[379153708,1755167450099,-460.0,0.00017802,2]
[379153709,1755167450108,-460.0,0.00017802,2]
[379153710,1755167450118,-460.0,0.00017802,2]
[379153711,1755167450127,-274.17599034,0.00017802,2]
[379153712,1755167450136,-1044.85,0.00017802,2]
[379153713,1755167450146,-460.0,0.00017802,2]
[379153714,1755167450156,-562.21,0.00017802,2]
[379153715,1755167450165,-460.0,0.00017802,2]
[379153716,1755167450175,-706.53,0.00017802,2]
[379153717,1755167450185,-772.56,0.00017802,2]
[379153718,1755167450194,-460.0,0.00017802,2]
[379153719,1755167450204,-460.0,0.00017802,2]
[379153720,1755167450214,-460.0,0.00017802,2]
[379153721,1755167450226,-151.0,0.00017802,2]
[379153722,1755167450235,-460.0,0.00017802,2]
[379153723,1755167450245,-390.05604,0.00017802,2]
[379153724,1755167450254,-390.056044,0.00017802,2]
[379153725,1755167450263,-460.0,0.00017802,2]
[379153726,1755167450273,-460.0,0.00017802,2]
[379153727,1755167450283,-460.0,0.00017802,2]
[379153728,1755167450292,-790.59,0.00017802,2]
[379153729,1755167450302,-229.27372587,0.00017802,2]
[379153730,1755167450312,-460.0,0.00017802,2]
[379153731,1755167450322,-460.0,0.00017802,2]
[379153732,1755167450331,-460.0,0.00017802,2]
[379153733,1755167450342,-1027.6,0.00017802,2]
[379153734,1755167450351,-460.0,0.00017802,2]
[379153735,1755167450360,-1319.98,0.00017802,2]
[379153736,1755167450369,-1026.7,0.00017802,2]
[379153737,1755167450379,-998.78,0.00017802,2]
[379153738,1755167450388,-460.0,0.00017802,2]
[379153739,1755167450397,-813.444331,0.00017802,2]
[379153740,1755167450406,-813.444331,0.00017802,2]
[379153741,1755167450416,-460.0,0.00017802,2]
[379153742,1755167450426,-2364.22,0.00017802,2]
[379153743,1755167450436,-1650.82,0.00017802,2]
[379153744,1755167450445,-1512.09,0.00017802,2]
[379153745,1755167450454,-460.0,0.00017802,2]
[379153746,1755167450464,-460.0,0.00017802,2]
[379153747,1755167450474,-1716.05,0.00017802,2]
[379153748,1755167450483,-1188.97,0.00017802,2]
[379153749,1755167450493,-500.02,0.00017802,2]
[379153750,1755167450502,-548.29,0.00017802,2]
[379153751,1755167450511,-460.0,0.00017804,2]
[379153752,1755167450521,-151.0,0.00017804,2]
[379153753,1755167450530,-151.0,0.00017804,2]
[379153754,1755167450540,-460.0,0.00017804,2]
[379153755,1755167450549,-151.0,0.00017804,2]
[379153756,1755167450558,-151.0,0.00017804,2]
[379153757,1755167450567,-460.0,0.00017804,2]
[379153758,1755167450576,-460.0,0.00017804,2]
[379153759,1755167450585,-460.0,0.00017804,2]
[379153760,1755167450595,-460.0,0.00017804,2]
[379153761,1755167450604,-151.0,0.00017804,2]
[379153762,1755167450613,-151.0,0.00017804,2]
[379153763,1755167450622,-600.91,0.00017804,2]
[379153764,1755167450631,-888.76,0.00017804,2]
[379153765,1755167450640,-525.16,0.00017804,2]
[379153766,1755167450650,-460.0,0.00017804,2]
[379153767,1755167450659,-151.0,0.00017804,2]
[379153768,1755167450668,-151.0,0.00017804,2]
[379153769,1755167450677,-1059.43,0.00017804,2]
[379153770,1755167450686,-460.0,0.00017804,2]
[379153771,1755167450698,-460.0,0.00017804,2]
[379153772,1755167450707,-513.09504681,0.00017804,2]
[379153773,1755167450717,-460.0,0.00017804,2]
[379153774,1755167450727,-606.15,0.00017804,2]
[379153775,1755167450737,-460.0,0.00017804,2]
[379153776,1755167450746,-813.444331,0.00017804,2]
[379153777,1755167450756,-813.444331,0.00017804,2]
[379153778,1755167450766,-813.444331,0.00017804,2]
[379153779,1755167450775,-813.44434,0.00017804,2]
[379153780,1755167450785,-460.0,0.00017804,2]
[379153781,1755167450794,-460.0,0.00017804,2]
[379153782,1755167450804,-460.0,0.00017804,2]
[379153783,1755167450813,-460.0,0.00017804,2]
[379153784,1755167450822,-369.77651135,0.00017804,2]
[379153785,1755167450832,-460.0,0.00017804,2]
[379153786,1755167450840,-460.0,0.00017804,2]
[379153787,1755167450850,-460.0,0.00017804,2]
[379153788,1755167450859,-150.52483999,0.00017804,2]
[379153789,1755167450868,-460.0,0.00017804,2]
[379153790,1755167450878,-460.0,0.00017804,2]
[379153791,1755167450887,-460.0,0.00017804,2]
[379153792,1755167450897,-460.0,0.00017804,2]
[379153793,1755167450907,-151.0,0.00017805,2]
[379153794,1755167450916,-151.0,0.00017805,2]
[379153795,1755167450926,-151.0,0.00017805,2]
[379153796,1755167450935,-242.71904106,0.00017805,2]
[379153797,1755167450944,-151.0,0.00017805,2]
[379153798,1755167450953,-151.0,0.00017805,2]
[379153799,1755167450962,-500.0,0.00017805,2]
[379153800,1755167450971,-151.0,0.00017805,2]
[379153801,1755167450980,-500.0,0.00017805,2]
[379153802,1755167450989,-500.0,0.00017805,2]
[379153803,1755167450998,-593.02015005,0.00017805,2]
[379153804,1755167451008,-151.0,0.00017805,2]
[379153805,1755167451017,-151.0,0.00017805,2]
[379153806,1755167451025,-151.0,0.00017805,2]
[379153807,1755167451034,-151.0,0.00017835,2]
[379153808,1755167451044,-151.0,0.00017835,2]
[379153809,1755167451053,-151.0,0.00017846,2]
[379153810,1755167451062,-151.0,0.00017846,2]
[379153811,1755167451072,-151.0,0.00017846,2]
[379153812,1755167451081,-151.0,0.00017846,2]
[379153813,1755167451090,-151.0,0.00017846,2]
[379153814,1755167451100,-151.0,0.00017846,2]
[379153815,1755167451108,-151.0,0.00017846,2]
[379153816,1755167451118,-151.0,0.00017846,2]
[379153817,1755167451127,-151.0,0.00017846,2]
[379153818,1755167451137,-151.0,0.00017846,2]
[379153819,1755167451146,-160.0,0.00017847,2]
[379153820,1755167451156,-151.0,0.00017847,2]
[379153821,1755167451165,-151.0,0.00017847,2]
[379153822,1755167451174,-151.0,0.00017847,2]
[379153823,1755167451185,-151.0,0.00017847,2]
[379153824,1755167451195,-151.443184,0.00017847,2]
[379153825,1755167451204,-151.0,0.00017847,2]
[379153826,1755167451213,-151.0,0.00017847,2]
[379153827,1755167451222,-236.304826,0.00017847,2]
[379153828,1755167451232,-151.0,0.00017847,2]
[379153829,1755167451243,-151.0,0.00017857,2]
[379153830,1755167451252,-151.0,0.00017857,2]
[379153831,1755167451261,-151.0,0.00017857,2]
[379153832,1755167451271,-151.0,0.00017857,2]
[379153833,1755167451280,-151.0,0.00017857,2]
[379153834,1755167451290,-194.476647,0.00017857,2]
[379153835,1755167451299,-151.0,0.00017857,2]
[379153836,1755167451309,-151.0,0.00017857,2]
[379153837,1755167451319,-151.0,0.00017857,2]
[379153838,1755167451328,-358.073343,0.00017858,2]
[379153839,1755167451337,-358.073343,0.00017858,2]
[379153840,1755167451347,-151.0,0.00017858,2]
[379153841,1755167451356,-151.0,0.00017858,2]
[379153842,1755167451366,-2631.46,0.00017868,2]
[379153843,1755167451375,-1127.57,0.00017868,2]
[379153844,1755167451385,-460.0,0.00017868,2]
[379153845,1755167451394,-5312.12,0.00017868,2]
[379153846,1755167451403,-460.0,0.00017868,2]
[379153847,1755167451413,-460.0,0.00017868,2]
[379153848,1755167451422,-2228.36,0.00017868,2]
[379153849,1755167451432,-3202.5,0.00017868,2]
[379153850,1755167451441,-520.94,0.00017868,2]
[379153851,1755167451451,-460.0,0.00017868,2]
[379153852,1755167451461,-973.99,0.00017868,2]
[379153853,1755167451470,-1376.46,0.00017868,2]
[379153854,1755167451479,-4318.68,0.00017868,2]
[379153855,1755167451489,-821.97,0.00017868,2]
[379153856,1755167451498,-588.33,0.00017868,2]
[379153857,1755167451509,-845.12,0.00017868,2]
[379153858,1755167451518,-648.48,0.00017868,2]
[379153859,1755167451528,-1462.79,0.00017868,2]
[379153860,1755167451537,-460.0,0.00017868,2]
[379153861,1755167451546,-613.05,0.00017868,2]
[379153862,1755167451555,-460.0,0.00017868,2]
[379153863,1755167451564,-460.0,0.00017868,2]
[379153864,1755167451573,-2959.92,0.00017868,2]
[379153865,1755167451583,-460.0,0.00017868,2]
[379153866,1755167451592,-747.39,0.00017869,2]
[379153867,1755167451601,-560.25200997,0.00017869,2]
[379153868,1755167451610,-497.01,0.00017869,2]
[379153869,1755167451620,-460.0,0.00017869,2]
[379153870,1755167451629,-460.0,0.00017869,2]
[379153871,1755167451638,-699.73,0.00017869,2]
[379153872,1755167451648,-1477.22,0.00017869,2]
[379153873,1755167451658,-460.0,0.00017869,2]
[379153874,1755167451668,-2424.2,0.00017869,2]
[379153875,1755167451679,-460.0,0.00017869,2]
[379153876,1755167451689,-460.0,0.00017869,2]
[379153877,1755167451706,-889.57,0.00017869,2]
[379153878,1755167451716,-460.0,0.00017869,2]
[379153879,1755167451728,-702.4,0.00017869,2]
[379153880,1755167451737,-576.00296941,0.00017869,2]
[379153881,1755167451747,-460.0,0.00017869,2]
[379153882,1755167451756,-460.0,0.00017869,2]
[379153883,1755167451767,-460.0,0.00017869,2]
[379153884,1755167451776,-1133.0,0.00017869,2]
[379153885,1755167451786,-877.33,0.00017869,2]
[379153886,1755167451795,-624.43,0.00017869,2]
[379153887,1755167451805,-614.72,0.00017869,2]
[379153888,1755167451814,-1686.27,0.00017869,2]
[379153889,1755167451824,-1033.02,0.00017869,2]
[379153890,1755167451834,-460.0,0.00017869,2]
[379153891,1755167451843,-460.0,0.00017869,2]
[379153892,1755167451852,-204.34921441,0.00017869,2]
[379153893,1755167452047,-441.2363975,0.00017869,2]
[379153894,1755167452058,-896.84438809,0.00017869,2]
[379153895,1755167452068,-71.2822429,0.00017869,2]
[379153896,1755167452102,36.20425596,0.00017321,2]
[379153897,1755167452125,707.86574404,0.00017321,2]
[379153898,1755167452360,-258.19999996,0.0001753,2]
[379153899,1755167452374,-201.80000004,0.0001753,2]
[379153900,1755167452384,-91.06534946,0.00017595,2]
[379153901,1755167453139,9292.13425596,0.00017318,2]
[379153902,1755167453165,10000.0,0.00017318,2]
[379153903,1755167453191,10000.0,0.00017318,2]
[379153904,1755167453217,10000.0,0.00017318,2]
[379153905,1755167453242,10000.0,0.00017318,2]
[379153906,1755167453266,10000.0,0.00017318,2]
[379153907,1755167453289,10000.0,0.00017318,2]
[379153908,1755167453315,5000.0,0.00017318,2]
[379153909,1755167453340,5000.0,0.00017318,2]
[379153910,1755167453364,5000.0,0.00017318,2]
[379153911,1755167453389,5000.0,0.00017318,2]
[379153912,1755167453414,5000.0,0.00017318,2]
[379153913,1755167453440,5000.0,0.00017318,2]
[379153914,1755167453466,5000.0,0.00017318,2]
[379153915,1755167453491,5000.0,0.00017318,2]
[379153916,1755167453514,5000.0,0.00017318,2]
[379153917,1755167453539,5000.0,0.00017318,2]
[379153918,1755167453628,3118.0805305,0.00016897,2]
[379153919,1755167453651,4846.42322347,0.00016897,2]
[379153920,1755167453702,-365.05895486,0.00017318,2]
[379153921,1755167453747,-0.24762211,0.00017318,2]
[379153922,1755167453763,-268.38624361,0.00017318,2]
[379153923,1755167453780,-1337.380915,0.00017318,2]
[379153927,1755167471197,1449.88116369,0.00016539,2]
[379153928,1755167479528,3703.69561284,0.00017218,2]
[379153929,1755167479550,7600.78057138,0.00017218,2]
[379153930,1755167484618,2399.21942862,0.00016898,2]
[379153931,1755167484640,3394.5057015,0.00016898,2]
[379153932,1755167498098,621.94975027,0.0001722,2]
[379153975,1755167720635,2323.08387472,0.0001722,2]
[379153976,1755167730501,964.12554,0.00013699,2]
[379153995,1755167838448,497.55980024,0.0001722,2]
[379154014,1755167981089,2198.77533327,0.00016317,2]
[379154015,1755167981113,1320.72415383,0.00016317,2]
[379154050,1755168008090,2032.69839038,0.00017216,2]
[379154055,1755168080142,510.662941,0.00016316,2]
[379154101,1755168180200,398.0478402,0.0001722,2]
[379154103,1755168182234,-291.9545145,0.00017308,2]
[379154110,1755168197519,-201.68299248,0.00017289,2]
[379154112,1755168200684,-152.49687673,0.00017289,2]
[379154115,1755168204379,-43.86797095,0.00017289,2]
[379154116,1755168204409,-212.7570842,0.00017307,2]
[379154118,1755168206028,-87.2429158,0.00017307,2]
[379154119,1755168206051,-212.7570842,0.00017308,2]
[379154131,1755168230868,-428.58558453,0.00017308,2]
[379154135,1755168233722,-269.37129298,0.00017308,2]
[379154136,1755168236441,-158.02347389,0.00017308,2]
[379154161,1755168280572,-290.45273025,0.00017307,2]
[379154163,1755168283426,-9.54726975,0.00017307,2]
[379154164,1755168283449,-308.43334357,0.00017308,2]
[379154166,1755168285690,-154.90224994,0.00017308,2]
[379154167,1755168285721,1891.45602144,0.00017208,2]
[379154168,1755168289837,-309.21945475,0.00017308,2]
[379154170,1755168292839,-368.54051785,0.00017307,2]
[379154178,1755168315353,210.60294784,0.00017061,2]
[379154180,1755168317155,-91.45948215,0.00017307,2]
[379154181,1755168317178,-263.50347645,0.00017307,2]
[379154185,1755168321401,-196.49652355,0.00017307,2]
[379154186,1755168321425,-8.9957128,0.00017307,2]
[379154191,1755168323900,-291.0042872,0.00017307,2]
[379154192,1755168323923,-94.94829558,0.00017307,2]
[379154193,1755168326559,-333.64991787,0.00017307,2]
[379154198,1755168349990,-31.40178655,0.00017307,2]
[379154199,1755168350012,-277.96603818,0.00017307,2]
[379154200,1755168352678,-362.52785105,0.00017307,2]
[379154201,1755168356480,-242.99611077,0.00017307,2]
[379154202,1755168356503,-90.86898948,0.00017307,2]
[379154203,1755168359038,-203.06113577,0.00017307,2]
[379154205,1755168389042,297.44507295,0.00017207,2]
[379154206,1755168395610,-224.62500086,0.00017306,2]
[379154209,1755168437300,-170.35037353,0.00017306,2]
[379154210,1755168441428,-129.64962647,0.00017306,2]
[379154211,1755168441450,-194.15731026,0.00017307,2]
[379154213,1755168445259,-168.48143441,0.00017307,2]
[379154220,1755168463895,3338.36263236,0.00016312,2]
[379154221,1755168463918,10000.0,0.00016312,2]
[379154222,1755168463942,10000.0,0.00016312,2]
[379154223,1755168463965,10000.0,0.00016312,2]
[379154224,1755168463990,10000.0,0.00016312,2]
[379154225,1755168464013,10000.0,0.00016312,2]
[379154226,1755168464035,10000.0,0.00016312,2]
[379154227,1755168464058,10000.0,0.00016312,2]
[379154228,1755168464080,10000.0,0.00016312,2]
[379154229,1755168464102,10000.0,0.00016312,2]
[379154230,1755168464127,10000.0,0.00016312,2]
[379154231,1755168464149,10000.0,0.00016312,2]
[379154232,1755168464172,10000.0,0.00016312,2]
[379154233,1755168464194,6661.63736764,0.00016312,2]
[379154234,1755168476167,3338.36263236,0.00017228,2]
[379154235,1755168476191,1661.63736764,0.00017228,2]
[379154236,1755168484650,4040.02383047,0.00017228,2]
[379154238,1755168492865,4298.33880189,0.00017228,2]
[379154239,1755168492886,701.66119811,0.00017228,2]
[379154241,1755168508954,5000.0,0.00017228,2]
[379154242,1755168519368,-336.24991532,0.00017307,2]
[379154243,1755168519826,416.28145321,0.00017217,2]
[379154244,1755168520967,-300.51169979,0.00017307,2]
[379154245,1755168520997,-105.13453746,0.00017307,2]
[379154246,1755168524800,-275.66802353,0.00017287,2]
[379154247,1755168525778,3882.05734868,0.00017228,2]
[379154248,1755168525806,1117.94265132,0.00017228,2]
[379154249,1755168526918,-140.61342967,0.00017287,2]
[379154251,1755168533810,4437.58813899,0.00017228,2]
[379154254,1755168541898,4444.46920969,0.00017228,2]
[379154255,1755168541921,555.53079031,0.00017228,2]
[379154256,1755168547523,1658.37796113,0.00017207,2]